bitfinex-derivatives/quotes_BNBF0:USTF0_20250111
["timestamp","ask_amount","ask_price","bid_price","bid_amount"]
[1736609694873,0.26409911,696.42,695.24,0.28767044]
[1736609695070,0.26409911,696.41,695.24,0.28767044]
[1736609695271,0.26409911,696.4,695.24,0.28767044]
[1736609695471,0.26409911,696.39,695.24,0.28767044]
[1736609695674,0.26409911,696.38,695.24,0.28767044]
[1736609695972,1.07471216,696.44,695.24,0.28767044]
[1736609696176,0.26409955,696.43,695.24,0.28767044]
[1736609697072,1.07471216,696.43,695.24,0.28767044]
[1736609697276,0.26410206,696.42,695.24,0.28767044]
[1736609698072,1.33881422,696.42,695.24,0.28767044]
[1736609698376,0.26410206,696.41,695.24,0.28767044]
[1736609698676,1.07471216,696.4,695.24,0.28767044]
[1736609698871,0.26410206,696.39,695.24,0.28767044]
[1736609699772,1.07471216,696.37,695.24,0.28767044]
[1736609699974,0.26410206,696.36,695.24,0.28767044]
[1736609700170,1.07471216,696.37,695.24,0.28767044]
[1736609700375,0.26412432,696.36,695.24,0.28767044]
[1736609700570,1.07471216,696.37,695.24,0.28767044]
[1736609700771,1.07471216,696.3,695.24,0.28767044]
[1736609700976,0.26413058,696.29,695.24,0.28767044]
[1736609701979,1.07471216,696.27,695.24,0.28767044]
[1736609703377,1.07471216,696.25,695.24,0.28767044]
[1736609704176,1.07471216,696.3,695.24,0.28767044]
[1736609704474,0.26416517,696.29,695.24,0.28767044]
[1736609705080,1.07471216,696.28,695.24,0.28767044]
[1736609705379,0.26416517,696.27,695.24,0.28767044]
[1736609706378,0.26416517,696.26,695.24,0.28767044]
[1736609706579,0.26416517,696.25,695.24,0.28767044]
[1736609706779,0.26416517,696.24,695.24,0.28767044]
[1736609707075,1.07471216,696.28,695.24,0.28767044]
[1736609707279,0.2641824,696.27,695.24,0.28767044]
[1736609707480,1.33889456,696.27,695.24,0.28767044]
[1736609707679,0.2641824,696.26,695.24,0.28767044]
[1736609707880,0.26417101,696.25,695.24,0.28767044]
[1736609708075,1.07471216,696.27,695.24,0.28767044]
[1736609708282,0.26417556,696.26,695.24,0.28767044]
[1736609708579,1.07471216,696.31,695.24,0.28767044]
[1736609708580,0.26417556,696.25,695.24,0.28767044]
[1736609708780,0.26417556,696.24,695.24,0.28767044]
[1736609709082,0.26417556,696.23,695.24,0.28767044]
[1736609709275,0.26417556,696.22,695.24,0.28767044]
[1736609709475,0.26417556,696.21,695.24,0.28767044]
[1736609712081,1.33888772,696.21,695.24,0.28767044]
[1736609712282,0.26417556,696.2,695.24,0.28767044]
[1736609712682,0.26419968,696.19,695.24,0.28767044]
[1736609712885,0.26419968,696.18,695.24,0.28767044]
[1736609713182,0.26419968,696.17,695.24,0.28767044]
[1736609713377,0.26419968,696.16,695.24,0.28767044]
[1736609713577,0.26419968,696.15,695.24,0.28767044]
[1736609713777,0.26419968,696.14,695.24,0.28767044]
[1736609713977,0.26419968,696.13,695.24,0.28767044]
[1736609714282,0.26419968,696.12,695.24,0.28767044]
[1736609714484,1.07471216,696.19,695.24,0.28767044]
[1736609714485,0.26419968,696.11,695.24,0.28767044]
[1736609714685,0.26419968,696.1,695.24,0.28767044]
[1736609714882,0.26419968,696.09,695.24,0.28767044]
[1736609715080,0.26419968,696.08,695.24,0.28767044]
[1736609715284,1.07471216,696.18,695.24,0.28767044]
[1736609715485,0.26420691,696.17,695.24,0.28767044]
[1736609715982,0.26421246,696.16,695.24,0.28767044]
[1736609716185,0.26421246,696.15,695.24,0.28767044]
[1736609716386,0.26421246,696.14,695.24,0.28767044]
[1736609716581,0.26421246,696.13,695.24,0.28767044]
[1736609716784,0.26421246,696.12,695.24,0.28767044]
[1736609716983,0.26421246,696.11,695.24,0.28767044]
[1736609717184,0.26421246,696.1,695.24,0.28767044]
[1736609717385,0.26421246,696.09,695.24,0.28767044]
[1736609717582,0.26421246,696.08,695.24,0.28767044]
[1736609717887,1.07471216,696.21,695.24,0.28767044]
[1736609717888,0.26421246,696.07,695.24,0.28767044]
[1736609718082,0.26421252,696.06,695.24,0.28767044]
[1736609718283,0.26421252,696.05,695.24,0.28767044]
[1736609718587,0.26421252,696.04,695.24,0.28767044]
[1736609718787,1.07471216,696.2,695.24,0.28767044]
[1736609719086,0.26420682,696.19,695.24,0.28767044]
[1736609719687,1.33891898,696.19,695.24,0.28767044]
[1736609719885,0.26420682,696.18,695.24,0.28767044]
[1736609720781,0.26421264,696.17,695.24,0.28767044]
[1736609722288,0.26421264,696.16,695.24,0.28767044]
[1736609722484,0.26421264,696.15,695.24,0.28767044]
[1736609722787,1.07471216,696.19,695.24,0.28767044]
[1736609722788,0.26421264,696.14,695.24,0.28767044]
[1736609722989,0.26421264,696.13,695.24,0.28767044]
[1736609723287,0.26421264,696.12,695.24,0.28767044]
[1736609723483,0.26421361,696.11,695.24,0.28767044]
[1736609723685,0.26421361,696.1,695.24,0.28767044]
[1736609724181,0.26421378,696.09,695.24,0.28767044]
[1736609724385,0.26421378,696.08,695.24,0.28767044]
[1736609724586,0.26421378,696.07,695.24,0.28767044]
[1736609724884,0.26421378,696.06,695.24,0.28767044]
[1736609725088,0.26421378,696.05,695.24,0.28767044]
[1736609725388,0.26421378,696.04,695.24,0.28767044]
[1736609725584,0.26421378,696.03,695.24,0.28767044]
[1736609725789,0.26421378,696.02,695.24,0.28767044]
[1736609725989,1.07471216,696.17,695.24,0.28767044]
[1736609726490,2.5759632,696.35,695.24,0.28767044]
[1736609726491,1.33892601,696.16,695.24,0.28767044]
[1736609726691,0.26421385,696.15,695.24,0.28767044]
[1736609728891,1.07471216,696.2,695.24,0.28767044]
[1736609729090,0.26419587,696.19,695.24,0.28767044]
[1736609729691,1.33890803,696.19,695.24,0.28767044]
[1736609729883,0.26419587,696.18,695.24,0.28767044]
[1736609730794,1.07471216,696.17,695.24,0.28767044]
[1736609731090,0.26419587,696.16,695.24,0.28767044]
[1736609731687,0.26419563,696.15,695.24,0.28767044]
[1736609731888,1.07471216,696.12,695.24,0.28767044]
[1736609732091,0.26419563,696.11,695.24,0.28767044]
[1736609732393,0.2642,696.1,695.24,0.28767044]
[1736609732590,0.2642,696.09,695.24,0.28767044]
[1736609732786,0.2642,696.08,695.24,0.28767044]
[1736609733093,0.26419813,696.07,695.24,0.28767044]
[1736609733394,1.07471216,696.1,695.24,0.28767044]
[1736609733593,0.264198,696.09,695.24,0.28767044]
[1736609734192,1.07471216,696.08,695.24,0.28767044]
[1736609734389,0.264198,696.07,695.24,0.28767044]
[1736609734592,0.26420304,696.07,695.24,0.28767044]
[1736609735194,1.07471216,696.04,695.24,0.28767044]
[1736609736293,1.07471216,696.03,695.24,0.28767044]
[1736609737393,1.07471216,696.05,695.24,0.28767044]
[1736609738501,1.07471216,696.01,695.24,0.28767044]
[1736609739398,1.07471216,696.0,695.24,0.28767044]
[1736609739999,1.07471216,695.99,695.24,0.28767044]
[1736609741196,1.07471216,695.97,695.24,0.28767044]
[1736609742602,1.07471216,695.96,695.24,0.28767044]
[1736609743504,1.07471216,695.94,695.24,0.28767044]
[1736609744704,1.07471216,695.93,695.24,0.28767044]
[1736609745900,1.07471216,695.93,694.72,4.33151244]
[1736609746207,1.07471216,695.93,694.73,2.30502663]
[1736609746406,1.07471216,695.93,694.74,0.28787747]
[1736609746700,1.07471216,695.84,694.74,0.28787747]
[1736609747607,1.07471216,695.87,694.74,0.28787747]
[1736609748605,1.07471216,695.86,694.74,0.28787747]
[1736609750508,0.88860765,696.24,694.74,0.28787747]
[1736609750509,1.07471216,695.95,694.74,0.28787747]
[1736609751305,1.07471216,695.97,694.74,0.28787747]
[1736609753208,1.07471216,695.99,694.74,0.28787747]
[1736609754108,1.07471216,696.0,694.74,0.28787747]
[1736609757213,1.07471216,695.99,694.74,0.28787747]
[1736609758310,1.07471216,696.0,694.74,0.28787747]
[1736609759112,1.50150474,696.25,694.74,0.28787747]
[1736609759113,1.07471216,696.02,694.74,0.28787747]
[1736609759314,0.2642424,696.01,694.74,0.28787747]
[1736609760316,1.07471216,695.97,694.74,0.28787747]
[1736609760511,0.2642424,695.96,694.74,0.28787747]
[1736609761216,0.26425887,695.95,694.74,0.28787747]
[1736609761417,1.07471216,695.9,694.74,0.28787747]
[1736609763218,0.26426591,695.89,694.74,0.28787747]
[1736609763819,1.07471216,695.91,694.74,0.28787747]
[1736609764019,0.26427423,695.9,694.74,0.28787747]
[1736609764318,1.07471216,695.88,694.74,0.28787747]
[1736609764521,0.26427423,695.87,694.74,0.28787747]
[1736609766619,1.07471216,695.88,694.74,0.28787747]
[1736609766920,0.26427441,695.87,694.74,0.28787747]
[1736609767122,1.07471216,695.89,694.74,0.28787747]
[1736609767318,0.2642749,695.88,694.74,0.28787747]
[1736609767923,1.33898706,695.88,694.74,0.28787747]
[1736609768223,1.07471216,695.88,694.74,0.28787747]
[1736609768624,0.264273,695.87,694.74,0.28787747]
[1736609768824,0.2642955,695.86,694.74,0.28787747]
[1736609769025,0.2642955,695.85,694.74,0.28787747]
[1736609769221,0.2642955,695.84,694.74,0.28787747]
[1736609769429,0.26430657,695.83,694.74,0.28787747]
[1736609769725,0.26430657,695.82,694.74,0.28787747]
[1736609770024,0.26430657,695.81,694.74,0.28787747]
[1736609770226,1.07471216,695.84,694.74,0.28787747]
[1736609770425,0.26430455,695.83,694.74,0.28787747]
[1736609771525,0.26430455,695.82,694.74,0.28787747]
[1736609771722,1.07471216,695.85,694.74,0.28787747]
[1736609771919,0.26430297,695.84,694.74,0.28787747]
[1736609772125,1.07471216,695.85,694.74,0.28787747]
[1736609772126,0.26430203,695.83,694.74,0.28787747]
[1736609772424,0.26430203,695.82,694.74,0.28787747]
[1736609772624,1.07471216,695.85,694.74,0.28787747]
[1736609772823,0.26430319,695.84,694.74,0.28787747]
[1736609773024,0.26430319,695.83,694.74,0.28787747]
[1736609773219,0.26430319,695.82,694.74,0.28787747]
[1736609773422,1.07471216,695.86,694.74,0.28787747]
[1736609773619,0.26430433,695.85,694.74,0.28787747]
[1736609773822,1.07471216,695.85,694.74,0.28787747]
[1736609774822,1.07471216,695.9,694.74,0.28787747]
[1736609775128,0.26429436,695.89,694.74,0.28787747]
[1736609775529,1.33900652,695.89,694.74,0.28787747]
[1736609775728,0.26429436,695.88,694.74,0.28787747]
[1736609776329,1.33900652,695.88,694.74,0.28787747]
[1736609776530,0.26429436,695.87,694.74,0.28787747]
[1736609777631,1.07471216,695.85,694.74,0.28787747]
[1736609778631,0.26430209,695.84,694.74,0.28787747]
[1736609779533,1.07471216,695.82,694.74,0.28787747]
[1736609779732,0.26430209,695.81,694.74,0.28787747]
[1736609780232,1.07471216,695.82,694.74,0.28787747]
[1736609780434,1.33901486,695.81,694.74,0.28787747]
[1736609780632,0.2643027,695.8,694.74,0.28787747]
[1736609781033,1.07471216,695.79,694.74,0.28787747]
[1736609782036,1.07471216,695.78,694.74,0.28787747]
[1736609782832,1.07471216,695.82,694.74,0.28787747]
[1736609783847,0.26430596,695.81,694.74,0.28787747]
[1736609784335,1.07471216,695.82,694.74,0.28787747]
[1736609784730,1.07471216,695.79,694.74,0.28787747]
[1736609785933,1.07471216,695.8,694.74,0.28787747]
[1736609788940,1.07471216,695.85,694.74,0.28787747]
[1736609790242,1.07471216,695.86,694.74,0.28787747]
[1736609792341,1.07471216,695.84,694.74,0.28787747]
[1736609793240,1.07471216,695.82,694.74,0.28787747]
[1736609794140,1.07471216,695.8,694.74,0.28787747]
[1736609794937,0.88802131,696.14,694.74,0.28787747]
[1736609794938,1.07471216,695.81,694.74,0.28787747]
[1736609795943,1.07471216,695.85,694.74,0.28787747]
[1736609797140,1.07471216,695.86,694.74,0.28787747]
[1736609798938,1.07471216,695.91,694.74,0.28787747]
[1736609800137,1.07471216,695.93,694.74,0.28787747]
[1736609800944,1.07471216,695.98,694.74,0.28787747]
[1736609802042,1.07471216,695.99,694.74,0.28787747]
[1736609803245,1.07471216,696.01,694.74,0.28787747]
[1736609804249,1.07471216,696.02,694.74,0.28787747]
[1736609806049,1.07471216,696.03,694.74,0.28787747]
[1736609806745,1.07471216,696.04,694.74,0.28787747]
[1736609807551,1.07471216,696.03,694.74,0.28787747]
[1736609808448,1.07471216,696.04,694.74,0.28787747]
[1736609809555,1.50158033,696.3,694.74,0.28787747]
[1736609809556,0.26423609,696.03,694.74,0.28787747]
[1736609809756,0.26423609,696.02,694.74,0.28787747]
[1736609809958,0.26423609,696.01,694.74,0.28787747]
[1736609810157,0.26423609,696.0,694.74,0.28787747]
[1736609810359,1.07471216,696.05,694.74,0.28787747]
[1736609810555,1.07471216,696.01,694.74,0.28787747]
[1736609810858,0.26423111,696.0,694.74,0.28787747]
[1736609811455,1.07471216,695.98,694.74,0.28787747]
[1736609811659,0.26423111,695.97,694.74,0.28787747]
[1736609812758,1.07471216,695.99,694.74,0.28787747]
[1736609812957,0.26423225,695.98,694.74,0.28787747]
[1736609813260,0.26423308,695.97,694.74,0.28787747]
[1736609813461,0.2642358,695.96,694.74,0.28787747]
[1736609813655,1.07471216,695.99,694.74,0.28787747]
[1736609814060,0.26423438,695.98,694.74,0.28787747]
[1736609815962,0.26423345,695.97,694.74,0.28787747]
[1736609816162,0.26423345,695.96,694.74,0.28787747]
[1736609816462,1.07471216,695.99,694.74,0.28787747]
[1736609816662,0.26423345,695.98,694.74,0.28787747]
[1736609816866,1.33894561,695.98,694.74,0.28787747]
[1736609817063,0.26423345,695.97,694.74,0.28787747]
[1736609817362,1.07471216,695.98,694.74,0.28787747]
[1736609818368,1.07471216,696.0,694.74,0.28787747]
[1736609819468,1.07471216,695.99,694.74,0.28787747]
[1736609819766,0.26437795,695.98,694.74,0.28787747]
[1736609819965,1.76624449,695.98,694.74,0.28787747]
[1736609820165,0.55174665,695.97,694.74,0.28787747]
[1736609820369,1.07471216,695.84,694.74,0.28787747]
[1736609820761,1.07471216,695.84,694.74,0.28101506]
[1736609821170,1.07471216,695.79,694.74,0.28101506]
[1736609821868,1.07471216,695.82,694.74,0.28101506]
[1736609823072,1.07471216,695.87,694.74,0.28101506]
[1736609823369,0.26438657,695.86,694.74,0.28101506]
[1736609824269,1.33909873,695.86,694.74,0.28101506]
[1736609824469,0.26438657,695.85,694.74,0.28101506]
[1736609825572,0.26438657,695.84,694.74,0.28101506]
[1736609825767,0.26438657,695.83,694.74,0.28101506]
[1736609825966,1.07471216,695.9,694.74,0.28101506]
[1736609826268,0.2873687,695.97,694.74,0.28101506]
[1736609826269,0.2643763,695.89,694.74,0.28101506]
[1736609826469,0.2643763,695.88,694.74,0.28101506]
[1736609826768,1.07471216,695.94,694.74,0.28101506]
[1736609826769,0.2643763,695.87,694.74,0.28101506]
[1736609826972,0.2643763,695.86,694.74,0.28101506]
[1736609827171,0.2643763,695.85,694.74,0.28101506]
[1736609827368,0.2643763,695.84,694.74,0.28101506]
[1736609827563,0.2643763,695.83,694.74,0.28101506]
[1736609827764,0.2643763,695.82,694.74,0.28101506]
[1736609828069,0.2643763,695.81,694.74,0.28101506]
[1736609828269,0.2643763,695.8,694.74,0.28101506]
[1736609828471,0.2643763,695.79,694.74,0.28101506]
[1736609828672,0.2873687,695.97,694.74,0.28101506]
[1736609828872,0.26437349,695.96,694.74,0.28101506]
[1736609829574,0.26437339,695.95,694.74,0.28101506]
[1736609829872,0.26437339,695.94,694.74,0.28101506]
[1736609830066,0.26437339,695.96,694.74,0.28101506]
[1736609830270,0.26437339,695.95,694.74,0.28101506]
[1736609830469,0.26437339,695.94,694.74,0.28101506]
[1736609830667,0.26437339,695.93,694.74,0.28101506]
[1736609830870,0.26437339,695.92,694.74,0.28101506]
[1736609831070,0.26437339,695.91,694.74,0.28101506]
[1736609831272,0.26437339,695.9,694.74,0.28101506]
[1736609831471,0.26437339,695.89,694.74,0.28101506]
[1736609831773,0.26437336,695.88,694.74,0.28101506]
[1736609831969,0.26437336,695.87,694.74,0.28101506]
[1736609832170,0.26437336,695.86,694.74,0.28101506]
[1736609832372,0.26437336,695.85,694.74,0.28101506]
[1736609832672,0.26437336,695.84,694.74,0.28101506]
[1736609832867,0.26437336,695.83,694.74,0.28101506]
[1736609833071,0.26437336,695.82,694.74,0.28101506]
[1736609833272,0.26437336,695.81,694.74,0.28101506]
[1736609833474,0.26437336,695.8,694.74,0.28101506]
[1736609833666,0.26437336,695.79,694.74,0.28101506]
[1736609833869,0.26437336,695.78,694.74,0.28101506]
[1736609834070,0.2873687,695.97,694.74,0.28101506]
[1736609834271,0.26437592,695.96,694.74,0.28101506]
[1736609835774,0.26437592,695.95,694.74,0.28101506]
[1736609835981,0.26437592,695.94,694.74,0.28101506]
[1736609836179,1.33908808,695.93,694.74,0.28101506]
[1736609836477,0.26437592,695.92,694.74,0.28101506]
[1736609837079,0.26438491,695.91,694.74,0.28101506]
[1736609837273,0.26438491,695.9,694.74,0.28101506]
[1736609837477,0.26438491,695.89,694.74,0.28101506]
[1736609837674,0.26438491,695.88,694.74,0.28101506]
[1736609837981,0.2643835,695.87,694.74,0.28101506]
[1736609838178,0.2643835,695.86,694.74,0.28101506]
[1736609838378,1.07471216,695.95,694.74,0.28101506]
[1736609838379,0.2643835,695.85,694.74,0.28101506]
[1736609838575,0.2643835,695.84,694.74,0.28101506]
[1736609838879,1.07471216,695.95,694.74,0.28101506]
[1736609838880,0.2643835,695.83,694.74,0.28101506]
[1736609839080,0.2643835,695.82,694.74,0.28101506]
[1736609839275,1.07471216,695.94,694.74,0.28101506]
[1736609839276,0.2643835,695.81,694.74,0.28101506]
[1736609839476,0.2643835,695.8,694.74,0.28101506]
[1736609839677,0.2643835,695.79,694.74,0.28101506]
[1736609839877,0.26437695,695.78,694.74,0.28101506]
[1736609840083,0.26437695,695.77,694.74,0.28101506]
[1736609840382,1.07471216,695.95,694.74,0.28101506]
[1736609840579,0.2873687,695.97,694.74,0.28101506]
[1736609840580,1.07471216,695.94,694.74,0.28101506]
[1736609841583,0.2643935,695.93,694.74,0.28101506]
[1736609841877,1.07471216,695.92,694.74,0.28101506]
[1736609842080,0.2643935,695.91,694.74,0.28101506]
[1736609842682,0.26437962,695.9,694.74,0.28101506]
[1736609842882,0.26437962,695.89,694.74,0.28101506]
[1736609843084,0.26437962,695.88,694.74,0.28101506]
[1736609843287,0.26437962,695.87,694.74,0.28101506]
[1736609843581,0.26437962,695.86,694.74,0.28101506]
[1736609843784,0.26437962,695.85,694.74,0.28101506]
[1736609843985,0.26437962,695.84,694.74,0.28101506]
[1736609844179,0.26437962,695.83,694.74,0.28101506]
[1736609844383,0.26437962,695.82,694.74,0.28101506]
[1736609844579,0.26437962,695.81,694.74,0.28101506]
[1736609844885,0.26437962,695.8,694.74,0.28101506]
[1736609845185,0.26437962,695.79,694.74,0.28101506]
[1736609845386,0.26436931,695.78,694.74,0.28101506]
[1736609845585,0.26436931,695.77,694.74,0.28101506]
[1736609845786,0.26436931,695.76,694.74,0.28101506]
[1736609845986,0.26436931,695.75,694.74,0.28101506]
[1736609846285,0.26436931,695.74,694.74,0.28101506]
[1736609846487,0.26436931,695.73,694.74,0.28101506]
[1736609846785,0.26436931,695.72,694.74,0.28101506]
[1736609846980,0.26436931,695.71,694.74,0.28101506]
[1736609847185,0.26436931,695.7,694.74,0.28101506]
[1736609847385,0.26436931,695.69,694.74,0.28101506]
[1736609847587,0.26436931,695.68,694.74,0.28101506]
[1736609847787,0.26436931,695.67,694.74,0.28101506]
[1736609848090,0.26437709,695.66,694.74,0.28101506]
[1736609848286,0.26437709,695.65,694.74,0.28101506]
[1736609848487,0.26437709,695.64,694.74,0.28101506]
[1736609848786,1.07471216,695.84,694.74,0.28101506]
[1736609848982,0.26437654,695.83,694.74,0.28101506]
[1736609849890,1.07471216,695.82,694.74,0.28101506]
[1736609850184,0.26437654,695.81,694.74,0.28101506]
[1736609850589,1.07471216,695.8,694.74,0.28101506]
[1736609850985,0.2643771,695.79,694.74,0.28101506]
[1736609851388,1.07471216,695.77,694.74,0.28101506]
[1736609851589,0.2643771,695.76,694.74,0.28101506]
[1736609852592,1.07471216,695.7,694.74,0.28101506]
[1736609852790,0.2643771,695.69,694.74,0.28101506]
[1736609853290,1.07471216,695.67,694.74,0.28101506]
[1736609853690,0.26437182,695.66,694.74,0.28101506]
[1736609854190,1.07471216,695.67,694.74,0.28101506]
[1736609854393,1.07471216,695.6,694.74,0.28101506]
[1736609855385,1.07471216,695.46,694.74,0.28101506]
[1736609856289,1.07471216,695.45,694.74,0.28101506]
[1736609857384,1.07471216,695.6,694.74,0.28101506]
[1736609859183,1.07471216,695.61,694.74,0.28101506]
[1736609861190,1.07471216,695.62,694.74,0.28101506]
[1736609862191,1.07471216,695.61,694.74,0.28101506]
[1736609864193,1.07471216,695.62,694.74,0.28101506]
[1736609864989,1.07471216,695.76,694.74,0.28101506]
[1736609866092,0.2873687,695.97,694.74,0.28101506]
[1736609866093,1.07471216,695.75,694.74,0.28101506]
[1736609867193,1.07471216,695.76,694.74,0.28101506]
[1736609869695,1.07471216,695.78,694.74,0.28101506]
[1736609870896,1.07471216,695.79,694.74,0.28101506]
[1736609871792,1.07471216,695.78,694.74,0.28101506]
[1736609872594,1.07471216,695.77,694.74,0.28101506]
[1736609874201,0.2643572,695.76,694.74,0.28101506]
[1736609874802,1.07471216,695.6,694.74,0.28101506]
[1736609876001,1.07471216,695.52,694.74,0.28101506]
[1736609884109,1.07471216,695.51,694.74,0.28101506]
[1736609885410,1.07471216,695.53,694.74,0.28101506]
[1736609886805,1.07471216,695.81,694.74,0.28101506]
[1736609886806,1.07471216,695.59,694.74,0.28101506]
[1736609887814,1.07471216,695.57,694.74,0.28101506]
[1736609889614,1.07471216,695.79,694.74,0.28101506]
[1736609889615,1.07471216,695.56,694.74,0.28101506]
[1736609891712,1.07471216,695.57,694.74,0.28101506]
[1736609893319,1.07471216,695.6,694.74,0.28101506]
[1736609894112,0.88921707,695.96,694.74,0.28101506]
[1736609894113,1.07471216,695.59,694.74,0.28101506]
[1736609895117,1.07471216,695.57,694.74,0.28101506]
[1736609896221,1.07471216,695.52,694.74,0.28101506]
[1736609896815,1.07471216,695.49,694.74,0.28101506]
[1736609898420,1.07471216,695.55,694.74,0.28101506]
[1736609900316,1.07471216,695.57,694.74,0.28101506]
[1736609901220,1.07471216,695.56,694.74,0.28101506]
[1736609906223,1.07471216,695.55,694.74,0.28101506]
[1736609907426,0.2644026,695.54,694.74,0.28101506]
[1736609908225,1.07471216,695.46,694.74,0.28101506]
[1736609909224,1.07471216,695.45,694.74,0.28101506]
[1736609910223,1.07471216,695.44,694.74,0.28101506]
[1736609910922,1.07471216,695.45,694.74,0.28101506]
[1736609920928,1.07471216,695.43,694.74,0.28101506]
[1736609923828,1.07471216,695.42,694.74,0.28101506]
[1736609927030,1.07471216,695.69,694.74,0.28101506]
[1736609927031,1.07471216,695.43,694.74,0.28101506]
[1736609927934,1.07471216,695.65,694.74,0.28101506]
[1736609928834,2.57694609,696.04,694.74,0.28101506]
[1736609928835,1.07471216,695.67,694.74,0.28101506]
[1736609930233,1.07471216,695.68,694.74,0.28101506]
[1736609931231,1.07471216,695.7,694.74,0.28101506]
[1736609932834,1.07471216,695.71,694.74,0.28101506]
[1736609933835,1.07471216,695.83,694.74,0.28101506]
[1736609934939,1.07471216,695.86,694.74,0.28101506]
[1736609935838,1.07471216,695.88,694.74,0.28101506]
[1736609936434,1.07471216,695.9,694.74,0.28101506]
[1736609937242,1.07471216,695.89,694.74,0.28101506]
[1736609938642,1.07471216,695.91,694.74,0.28101506]
[1736609939543,1.07471216,695.92,694.74,0.28101506]
[1736609940436,1.07471216,695.95,694.74,0.28101506]
[1736609940635,0.26432642,695.94,694.74,0.28101506]
[1736609941244,1.07471216,695.91,694.74,0.28101506]
[1736609941443,0.26432642,695.9,694.74,0.28101506]
[1736609941944,1.07471216,695.8,694.74,0.28101506]
[1736609942142,0.26432642,695.79,694.74,0.28101506]
[1736609942539,1.07471216,695.8,694.74,0.28101506]
[1736609942741,1.33903793,695.79,694.74,0.28101506]
[1736609943044,0.26432577,695.78,694.74,0.28101506]
[1736609943843,0.26432577,695.77,694.74,0.28101506]
[1736609944043,0.26432577,695.76,694.74,0.28101506]
[1736609944237,1.07471216,695.8,694.74,0.28101506]
[1736609944637,1.07471216,695.81,694.74,0.28101506]
[1736609945543,0.2873687,695.97,694.74,0.28101506]
[1736609945544,1.07471216,695.88,694.74,0.28101506]
[1736609945737,0.26429772,695.87,694.74,0.28101506]
[1736609946845,0.26429772,695.86,694.74,0.28101506]
[1736609947044,0.26429772,695.85,694.74,0.28101506]
[1736609947242,1.07471216,695.94,694.74,0.28101506]
[1736609947443,0.26428878,695.93,694.74,0.28101506]
[1736609948144,0.26428833,695.92,694.74,0.28101506]
[1736609948341,0.26428833,695.91,694.74,0.28101506]
[1736609948546,0.26428833,695.9,694.74,0.28101506]
[1736609948744,0.26428833,695.89,694.74,0.28101506]
[1736609948941,0.26428833,695.88,694.74,0.28101506]
[1736609949149,0.26428833,695.87,694.74,0.28101506]
[1736609949450,0.26428833,695.86,694.74,0.28101506]
[1736609949747,1.07471216,695.96,694.74,0.28101506]
[1736609949949,0.2642879,695.95,694.74,0.28101506]
[1736609950648,1.07471216,695.96,694.74,0.28101506]
[1736609950848,0.26428589,695.95,694.74,0.28101506]
[1736609951547,0.26428607,695.94,694.74,0.28101506]
[1736609951749,0.26428607,695.93,694.74,0.28101506]
[1736609951949,0.26428607,695.92,694.74,0.28101506]
[1736609952147,0.26428607,695.91,694.74,0.28101506]
[1736609952347,0.26428607,695.9,694.74,0.28101506]
[1736609952548,0.26428607,695.89,694.74,0.28101506]
[1736609952851,0.26428607,695.88,694.74,0.28101506]
[1736609953149,1.07471216,695.94,694.74,0.28101506]
[1736609953344,0.26426917,695.93,694.74,0.28101506]
[1736609953544,0.2642718,695.92,694.74,0.28101506]
[1736609953751,0.2642718,695.91,694.74,0.28101506]
[1736609953953,0.2642718,695.9,694.74,0.28101506]
[1736609954145,0.2642718,695.89,694.74,0.28101506]
[1736609954349,0.2873687,695.97,694.74,0.28101506]
[1736609954549,0.26427386,695.96,694.74,0.28101506]
[1736609959158,0.26427164,695.95,694.74,0.28101506]
[1736609959351,0.26427164,695.94,694.74,0.28101506]
[1736609959555,0.2873687,695.97,694.74,0.28101506]
[1736609959556,0.26427164,695.93,694.74,0.28101506]
[1736609959756,0.26427164,695.96,694.74,0.28101506]
[1736609959953,0.26427164,695.95,694.74,0.28101506]
[1736609960154,0.26427164,695.94,694.74,0.28101506]
[1736609960352,0.26427164,695.93,694.74,0.28101506]
[1736609960658,0.26427164,695.92,694.74,0.28101506]
[1736609960858,0.26427432,695.91,694.74,0.28101506]
[1736609961059,0.2873687,695.97,694.74,0.28101506]
[1736609961259,0.26427479,695.96,694.74,0.28101506]
[1736609961860,0.26428174,695.95,694.74,0.28101506]
[1736609962059,0.26428174,695.96,694.74,0.28101506]
[1736609962256,0.26428174,695.95,694.74,0.28101506]
[1736609962462,0.26428174,695.94,694.74,0.28101506]
[1736609962760,0.26428174,695.93,694.74,0.28101506]
[1736609962961,0.26428174,695.92,694.74,0.28101506]
[1736609963162,0.26428174,695.91,694.74,0.28101506]
[1736609963362,0.26428174,695.9,694.74,0.28101506]
[1736609963561,0.26428174,695.89,694.74,0.28101506]
[1736609963762,0.2873687,695.97,694.74,0.28101506]
[1736609963763,1.3389939,695.88,694.74,0.28101506]
[1736609964061,0.26428174,695.87,694.74,0.28101506]
[1736609964557,1.07471216,695.88,694.74,0.28101506]
[1736609964764,0.26428454,695.87,694.74,0.28101506]
[1736609964958,1.3389967,695.87,694.74,0.28101506]
[1736609965156,0.26428454,695.86,694.74,0.28101506]
[1736609966063,1.07471216,695.85,694.74,0.28101506]
[1736609966261,0.26428454,695.84,694.74,0.28101506]
[1736609966764,1.07471216,695.82,694.74,0.28101506]
[1736609966958,0.26429506,695.81,694.74,0.28101506]